[Event "DVM U14 2024"]
[Site "Heidelberg"]
[Date "2024.12.28"]
[Round "3"]
[White "Zhu, Timo Kaiheng"]
[Black "Madel, Luca"]
[Result "1/2-1/2"]
[ECO "D00"]
[WhiteElo "1615"]
[BlackElo "1657"]
[Annotator "NA RC"]
[PlyCount "86"]
[EventDate "2024.12.23"]
[EventType "team-tourn"]
[EventRounds "7"]
[EventCountry "GER"]
[SourceTitle "playchess.com"]
[Source "ChessBase"]
[SourceQuality "1"]
[TimeControl "40/5400+30:1800+30"]

1. d4 {[%emt 0:00:02]} d5 {[%emt 0:00:10]} 2. Bf4 {[%emt 0:00:08]} Nf6 {[%emt 0:01:16]} 3. e3 {[%emt 0:00:27]} Bf5 {[%emt 0:00:24]} 4. Bd3 {[%emt 0:00:43]} Bg6 {[%emt 0:00:38]} 5. Bxg6 {[%emt 0:00:22]} hxg6 {[%emt 0:00:19]} 6. Nf3 {[%emt 0:00:21]} e6 {[%emt 0:00:26]} 7. O-O {[%emt 0:00:24]} c6 {[%emt 0:00:18]} 8. Nbd2 {[%emt 0:00:27]} Bd6 {[%emt 0:00:18]} 9. Bxd6 {[%emt 0:02:17]} Qxd6 {[%emt 0:00:31]} 10. h3 {[%emt 0:01:18]} Nbd7 {[%emt 0:00:18]} 11. c4 {[%emt 0:00:56]} Ke7 {[%emt 0:02:14]} 12. cxd5 {[%emt 0:01:18]} cxd5 {[%emt 0:00:51]} 13. Re1 {[%emt 0:00:36]} Rh5 {[%emt 0:02:01]} 14. e4 {[%emt 0:01:06]} Nxe4 {[%emt 0:00:58]} 15. Nxe4 {[%emt 0:00:17]} dxe4 {[%emt 0:00:19]} 16. Rxe4 {[%emt 0:00:34]} Nf6 {[%emt 0:03:45]} 17. Re5 {[%emt 0:01:07]} Rxe5 {[%emt 0:00:46]} 18. dxe5 {[%emt 0:00:07]} Qxd1+ {[%emt 0:00:15]} 19. Rxd1 {[%emt 0:00:03]} Nd5 {[%emt 0:00:31]} 20. a3 {[%emt 0:01:45]} Rc8 {[%emt 0:00:16]} 21. Nd4 {[%emt 0:00:53]} a6 {[%emt 0:01:01]} 22. g3 {[%emt 0:01:28]} g5 {[%emt 0:06:35]} 23. Rd2 {[%emt 0:05:52]} Rc7 {[%emt 0:06:44]} 24. Nf3 {[%emt 0:03:24]} f6 {[%emt 0:01:10]} 25. Kg2 {[%emt 0:03:37]} Rc4 {[%emt 0:01:49]} 26. exf6+ {[%emt 0:04:54]} gxf6 {[%emt 0:02:02]} 27. Rd4 {[%emt 0:01:56]} Rc2 {[%emt 0:03:48]} 28. Rd2 {[%emt 0:00:14]} Rc6 {[%emt 0:01:40]} 29. Nd4 {[%emt 0:01:12]} Rc4 {[%emt 0:05:44]} 30. Nf3 {[%emt 0:02:19]} b5 {[%emt 0:06:46]} 31. Rd4 {[%emt 0:01:12]} Nb6 {[%emt 0:01:23]} 32. Rd3 {[%emt 0:04:24]} Rc2 {[%emt 0:13:30]} 33. Rd2 {[%emt 0:00:11]} Rc4 {[%emt 0:01:37]} 34. Rd3 {[%emt 0:01:25]} e5 {[%emt 0:01:05]} 35. Rd2 {[%emt 0:01:44]} g4 {[%emt 0:02:24]} 36. hxg4 {[%emt 0:01:25]} Rxg4 {[%emt 0:00:10]} 37. b3 {[%emt 0:01:19]} Rg8 {[%emt 0:00:39]} 38. Rc2 {[%emt 0:01:14]} Rc8 {[%emt 0:02:07]} 39. Rxc8 {[%emt 0:00:43]} Nxc8 {[%emt 0:00:07]} 40. g4 {[%emt 0:00:17]} Ke6 {[%emt 0:00:57]} 41. Nd2 {[%emt 0:31:08]} Nd6 {[%emt 0:30:18]} 42. Kf3 {[%emt 0:00:41]} a5 {[%emt 0:00:24]} 43. Ne4 {[%emt 0:01:19]} Nb7 {[%emt 0:01:16]} 1/2-1/2

[Event "DVM U14 2024"]
[Site "Heidelberg"]
[Date "2024.12.28"]
[Round "3"]
[White "Belenki, Janis"]
[Black "Yan, Haichen"]
[Result "0-1"]
[ECO "D02"]
[WhiteElo "1611"]
[BlackElo "1732"]
[Annotator "NA RC"]
[PlyCount "72"]
[EventDate "2024.12.23"]
[EventType "team-tourn"]
[EventRounds "7"]
[EventCountry "GER"]
[SourceTitle "playchess.com"]
[Source "ChessBase"]
[SourceQuality "1"]
[TimeControl "40/5400+30:1800+30"]

1. d4 {[%emt 0:00:06]} Nf6 {[%emt 0:00:08]} 2. Nf3 {[%emt 0:00:14]} e6 {[%emt 0:00:09]} 3. Bf4 {[%emt 0:00:13]} d5 {[%emt 0:01:22]} 4. e3 {[%emt 0:00:22]} c5 {[%emt 0:01:38]} 5. Nbd2 {[%emt 0:00:36]} Nc6 {[%emt 0:00:36]} 6. c3 {[%emt 0:01:07]} Bd6 {[%emt 0:02:07]} 7. Bg3 {[%emt 0:01:00]} O-O {[%emt 0:02:30]} 8. Bd3 {[%emt 0:01:00]} Re8 {[%emt 0:07:41]} 9. Ne5 {[%emt 0:01:45]} c4 {[%emt 0:10:54]} 10. Bc2 {[%emt 0:01:51]} Qc7 {[%emt 0:02:58]} 11. Ndf3 {[%emt 0:05:02]} Nd7 {[%emt 0:04:33]} 12. Nxd7 {[%emt 0:15:33]} Bxd7 {[%emt 0:10:00]} 13. Bxh7+ {[%emt 0:04:36]} Kxh7 {[%emt 0:00:21]} 14. Ng5+ {[%emt 0:00:11]} Kg6 {[%emt 0:00:24]} 15. Qg4 {[%emt 0:23:48]} f5 {[%emt 0:01:05]} 16. Nxe6+ {[%emt 0:00:32]} fxg4 {[%emt 0:00:33]} 17. Nxc7 {[%emt 0:00:09]} Bxc7 {[%emt 0:00:20]} 18. Bxc7 {[%emt 0:00:05]} Bf5 {[%emt 0:00:48]} 19. Kd2 {[%emt 0:01:23]} Rac8 {[%emt 0:00:43]} 20. Bf4 {[%emt 0:00:46]} Kf6 {[%emt 0:00:52]} 21. b3 {[%emt 0:02:43]} g5 {[%emt 0:01:56]} 22. Bg3 {[%emt 0:00:34]} b5 {[%emt 0:04:11]} 23. b4 {[%emt 0:04:00]} Be4 {[%emt 0:00:48]} 24. Rhg1 {[%emt 0:03:19]} Ne7 {[%emt 0:01:23]} 25. a4 {[%emt 0:01:22]} a6 {[%emt 0:01:34]} 26. axb5 {[%emt 0:00:59]} axb5 {[%emt 0:00:08]} 27. Ra6+ {[%emt 0:00:24]} Kf7 {[%emt 0:00:36]} 28. f3 {[%emt 0:06:37]} gxf3 {[%emt 0:04:36]} 29. gxf3 {[%emt 0:00:06]} Bxf3 {[%emt 0:00:17]} 30. Rf1 {[%emt 0:00:10]} g4 {[%emt 0:00:10]} 31. h3 {[%emt 0:00:14]} Ra8 {[%emt 0:09:21]} 32. Ra5 {[%emt 0:02:17]} Rxa5 {[%emt 0:02:13]} 33. bxa5 {[%emt 0:00:09]} Ke6 {[%emt 0:00:35]} 34. hxg4 {[%emt 0:01:07]} Bxg4 {[%emt 0:00:26]} 35. Be5 {[%emt 0:01:28]} Kd7 {[%emt 0:03:12]} 36. Rf6 {[%emt 0:03:45]} Be6 {[%emt 0:00:29]} 0-1

[Event "DVM U14 2024"]
[Site "Heidelberg"]
[Date "2024.12.28"]
[Round "3"]
[White "Schirmer, Enias"]
[Black "Maier, Kalle"]
[Result "1/2-1/2"]
[ECO "B33"]
[WhiteElo "1594"]
[BlackElo "1673"]
[Annotator "NA RC"]
[PlyCount "87"]
[EventDate "2024.12.23"]
[EventType "team-tourn"]
[EventRounds "7"]
[EventCountry "GER"]
[SourceTitle "playchess.com"]
[Source "ChessBase"]
[SourceQuality "1"]
[TimeControl "40/5400+30:1800+30"]

1. e4 {[%emt 0:00:01]} c5 {[%emt 0:00:09]} 2. Nf3 {[%emt 0:00:16]} Nc6 {[%emt 0:00:07]} 3. d4 {[%emt 0:00:16]} cxd4 {[%emt 0:00:08]} 4. Nxd4 {[%emt 0:00:06]} e5 {[%emt 0:00:07]} 5. Nf3 {[%emt 0:00:24]} Nf6 {[%emt 0:00:17]} 6. Nc3 {[%emt 0:00:40]} Bb4 {[%emt 0:00:26]} 7. Bg5 {[%emt 0:01:18]} d6 {[%emt 0:01:08]} 8. Bb5 {[%emt 0:09:16]} Bxc3+ {[%emt 0:05:21]} 9. bxc3 {[%emt 0:00:23]} O-O {[%emt 0:03:43]} 10. O-O {[%emt 0:01:13]} Bg4 {[%emt 0:07:22]} 11. Qd3 {[%emt 0:02:21]} Qe7 {[%emt 0:05:16]} 12. h3 {[%emt 0:00:51]} Bh5 {[%emt 0:02:00]} 13. Nh4 {[%emt 0:03:35]} Bg6 {[%emt 0:07:41]} 14. Nxg6 {[%emt 0:01:16]} hxg6 {[%emt 0:00:32]} 15. Rfd1 {[%emt 0:01:51]} Rfd8 {[%emt 0:02:44]} 16. Rab1 {[%emt 0:08:59]} Rac8 {[%emt 0:04:34]} 17. Bc4 {[%emt 0:08:25]} Qc7 {[%emt 0:03:59]} 18. Bd5 {[%emt 0:06:06]} Rd7 {[%emt 0:04:43]} 19. Bxf6 {[%emt 0:09:10]} gxf6 {[%emt 0:00:14]} 20. Rb2 {[%emt 0:06:06]} b6 {[%emt 0:05:35]} 21. c4 {[%emt 0:15:43]} Ne7 {[%emt 0:07:45]} 22. Rc1 {[%emt 0:05:18]} Nxd5 {[%emt 0:01:47]} 23. cxd5 {[%emt 0:00:22]} Qc4 {[%emt 0:03:07]} 24. Qxc4 {[%emt 0:06:04]} Rxc4 {[%emt 0:00:07]} 25. f3 {[%emt 0:00:27]} Rdc7 {[%emt 0:00:11]} 26. Kf2 {[%emt 0:00:18]} g5 {[%emt 0:00:54]} 27. Ke2 {[%emt 0:00:40]} Kg7 {[%emt 0:00:57]} 28. Kd2 {[%emt 0:01:21]} Kg6 {[%emt 0:00:51]} 29. g4 {[%emt 0:00:48]} Kg7 {[%emt 0:01:42]} 30. Rb3 {[%emt 0:02:56]} Kf8 {[%emt 0:01:13]} 31. c3 {[%emt 0:00:31]} Ke7 {[%emt 0:01:11]} 32. Rb4 {[%emt 0:02:59]} Kd7 {[%emt 0:03:14]} 33. Rc2 {[%emt 0:00:29]} Rc8 {[%emt 0:02:08]} 34. Kd3 {[%emt 0:00:43]} Rxb4 {[%emt 0:02:30]} 35. cxb4 {[%emt 0:00:15]} Rh8 {[%emt 0:01:13]} 36. Rh2 {[%emt 0:00:17]} b5 {[%emt 0:00:41]} 37. a3 {[%emt 0:00:33]} Kc7 {[%emt 0:03:07]} 38. Kc3 {[%emt 0:00:50]} Kb6 {[%emt 0:01:19]} 39. Kb3 {[%emt 0:00:22]} a5 {[%emt 0:03:49]} 40. Kb2 {[%emt 0:03:42]} axb4 {[%emt 0:02:20]} 41. axb4 {[%emt 0:30:07]} Rc8 {[%emt 0:34:45]} 42. Rc2 {[%emt 0:00:11]} Rc4 {[%emt 0:01:55]} 43. Kb3 {[%emt 0:03:49]} Rxc2 {[%emt 0:03:56]} 44. Kxc2 {[%emt 0:00:09]} 1/2-1/2

[Event "DVM U14 2024"]
[Site "Heidelberg"]
[Date "2024.12.28"]
[Round "3"]
[White "Nguyen, Bach Khoi"]
[Black "Retzlaff, Nick"]
[Result "1/2-1/2"]
[ECO "B90"]
[WhiteElo "1590"]
[BlackElo "1979"]
[Annotator "NA RC"]
[PlyCount "71"]
[EventDate "2024.12.23"]
[EventType "team-tourn"]
[EventRounds "7"]
[EventCountry "GER"]
[SourceTitle "playchess.com"]
[Source "ChessBase"]
[SourceQuality "1"]
[TimeControl "40/5400+30:1800+30"]

1. e4 {[%emt 0:00:03]} c5 {[%emt 0:00:02]} 2. Nf3 {[%emt 0:00:07]} d6 {[%emt 0:00:02]} 3. d4 {[%emt 0:00:13]} cxd4 {[%emt 0:00:08]} 4. Nxd4 {[%emt 0:00:12]} Nf6 {[%emt 0:00:01]} 5. Nc3 {[%emt 0:00:08]} a6 {[%emt 0:00:09]} 6. Be3 {[%emt 0:00:31]} e5 {[%emt 0:00:11]} 7. Nb3 {[%emt 0:00:09]} Be6 {[%emt 0:00:01]} 8. f3 {[%emt 0:00:29]} Be7 {[%emt 0:00:31]} 9. Qd2 {[%emt 0:00:47]} O-O {[%emt 0:01:28]} 10. O-O-O {[%emt 0:00:19]} b5 {[%emt 0:05:33]} 11. g4 {[%emt 0:03:53]} Nbd7 {[%emt 0:22:28]} 12. Kb1 {[%emt 0:08:00]} Nb6 {[%emt 0:01:58]} 13. Bxb6 {[%emt 0:04:21]} Qxb6 {[%emt 0:00:16]} 14. h4 {[%emt 0:10:55]} d5 {[%emt 0:07:35]} 15. g5 {[%emt 0:19:11]} d4 {[%emt 0:01:04]} 16. Ne2 {[%emt 0:00:20]} Nh5 {[%emt 0:04:23]} 17. f4 {[%emt 0:03:48]} Nxf4 {[%emt 0:01:20]} 18. Nxf4 {[%emt 0:00:46]} exf4 {[%emt 0:00:40]} 19. Qxf4 {[%emt 0:02:50]} Bxb3 {[%emt 0:06:35]} 20. cxb3 {[%emt 0:02:56]} Rac8 {[%emt 0:01:09]} 21. Bd3 {[%emt 0:02:39]} f6 {[%emt 0:12:53]} 22. Qg4 {[%emt 0:12:21]} Rc5 {[%emt 0:08:07]} 23. gxf6 {[%emt 0:08:03]} Bxf6 {[%emt 0:05:29]} 24. Rhg1 {[%emt 0:04:05]} Qd6 {[%emt 0:05:48]} 25. Rdf1 {[%emt 0:03:02]} Kh8 {[%emt 0:04:59]} 26. Rc1 {[%emt 0:05:10]} Rxc1+ {[%emt 0:01:04]} 27. Rxc1 {[%emt 0:02:15]} Rd8 {[%emt 0:02:09]} 28. Qf5 {[%emt 0:00:46]} Qd7 {[%emt 0:01:18]} 29. Qh5 {[%emt 0:01:40]} Qe8 {[%emt 0:00:49]} 30. Qg4 {[%emt 0:01:51]} Qd7 {[%emt 0:00:36]} 31. Qxd7 {[%emt 0:00:35]} Rxd7 {[%emt 0:00:05]} 32. Rc6 {[%emt 0:00:25]} Bxh4 {[%emt 0:01:20]} 33. Rxa6 {[%emt 0:00:19]} b4 {[%emt 0:00:40]} 34. Rb6 {[%emt 0:00:18]} Be7 {[%emt 0:00:38]} 35. e5 {[%emt 0:00:46]} g6 {[%emt 0:03:46]} 36. Kc2 {[%emt 0:00:55]} 1/2-1/2

[Event "DVM U14 2024"]
[Site "Heidelberg"]
[Date "2024.12.28"]
[Round "3"]
[White "Roessler, Leo"]
[Black "Mohylnyi, Stepan"]
[Result "0-1"]
[ECO "C18"]
[WhiteElo "1589"]
[BlackElo "2180"]
[Annotator "RC"]
[PlyCount "110"]
[EventDate "2024.12.23"]
[EventType "team-tourn"]
[EventRounds "7"]
[EventCountry "GER"]
[SourceTitle "playchess.com"]
[Source "ChessBase"]
[SourceQuality "1"]
[TimeControl "40/5400+30:1800+30"]

1. e4 {[%emt 0:00:03]} e6 {[%emt 0:00:05]} 2. d4 {[%emt 0:00:08]} d5 {[%emt 0:00:03]} 3. Nc3 {[%emt 0:00:12]} Bb4 {[%emt 0:00:05]} 4. e5 {[%emt 0:00:11]} c5 {[%emt 0:00:02]} 5. a3 {[%emt 0:00:23]} Bxc3+ {[%emt 0:00:05]} 6. bxc3 {[%emt 0:00:11]} Ne7 {[%emt 0:00:13]} 7. f4 {[%emt 0:00:45]} Nbc6 {[%emt 0:01:56]} 8. Nf3 {[%emt 0:00:47]} Bd7 {[%emt 0:00:57]} 9. Bd3 {[%emt 0:00:58]} c4 {[%emt 0:00:04]} 10. Be2 {[%emt 0:00:53]} Qa5 {[%emt 0:00:05]} 11. Bd2 {[%emt 0:02:40]} O-O-O {[%emt 0:00:11]} 12. Qc1 {[%emt 0:06:04]} Qa4 {[%emt 0:02:21]} 13. Qb2 {[%emt 0:03:42]} f6 {[%emt 0:00:45]} 14. Rb1 {[%emt 0:05:27]} b6 {[%emt 0:00:12]} 15. O-O {[%emt 0:03:38]} Be8 {[%emt 0:01:00]} 16. Nh4 {[%emt 0:09:06]} Bg6 {[%emt 0:01:46]} 17. Nxg6 {[%emt 0:01:31]} hxg6 {[%emt 0:00:02]} 18. Bg4 {[%emt 0:04:56]} Nf5 {[%emt 0:00:25]} 19. Bxf5 {[%emt 0:00:26]} gxf5 {[%emt 0:00:33]} 20. Qb5 {[%emt 0:02:37]} Qxb5 {[%emt 0:00:10]} 21. Rxb5 {[%emt 0:00:50]} fxe5 {[%emt 0:00:24]} 22. fxe5 {[%emt 0:00:46]} Rh5 {[%emt 0:00:31]} 23. g3 {[%emt 0:03:11]} g5 {[%emt 0:01:28]} 24. Rf2 {[%emt 0:04:11]} Kb7 {[%emt 0:00:27]} 25. a4 {[%emt 0:01:48]} Nb8 {[%emt 0:00:58]} 26. Rb1 {[%emt 0:11:53]} Ka6 {[%emt 0:03:16]} 27. Rb5 {[%emt 0:06:44]} Nc6 {[%emt 0:00:06]} 28. Be3 {[%emt 0:11:21]} Ne7 {[%emt 0:00:17]} 29. Rg2 {[%emt 0:04:20]} Rf8 {[%emt 0:01:26]} 30. g4 {[%emt 0:02:43]} fxg4 {[%emt 0:00:03]} 31. Rxg4 {[%emt 0:00:23]} Nf5 {[%emt 0:00:01]} 32. Bf2 {[%emt 0:02:33]} Rg8 {[%emt 0:00:11]} 33. Rb1 {[%emt 0:00:57]} Rh3 {[%emt 0:00:11]} 34. Rc1 {[%emt 0:01:34]} Rgh8 {[%emt 0:00:30]} 35. Rg2 {[%emt 0:02:15]} Rxc3 {[%emt 0:02:14]} 36. Rxg5 {[%emt 0:00:22]} Rch3 {[%emt 0:00:03]} 37. Rg2 {[%emt 0:00:35]} Ka5 {[%emt 0:00:03]} 38. Ra1 {[%emt 0:02:11]} Kb4 {[%emt 0:00:02]} 39. Be1+ {[%emt 0:02:16]} c3 {[%emt 0:00:02]} 40. Bf2 {[%emt 0:02:44]} Kc4 {[%emt 0:00:09]} 41. a5 {[%emt 0:32:06]} b5 {[%emt 0:30:06]} 42. a6 {[%emt 0:00:19]} Ne3 {[%emt 0:00:11]} 43. Bxe3 {[%emt 0:00:43]} Rxe3 {[%emt 0:00:02]} 44. Rg7 {[%emt 0:00:00]} Re2 {[%emt 0:00:00]} 45. Rxa7 {[%emt 0:00:00]} Rexh2 {[%emt 0:00:00]} 46. Ra2 {[%emt 0:00:00]} R2h6 {[%emt 0:00:00]} 47. Rb7 {[%emt 0:00:00]} Rg6+ {[%emt 0:00:00]} 48. Kf2 {[%emt 0:00:00]} Kxd4 {[%emt 0:00:00]} 49. Rf7 {[%emt 0:00:00]} Kxe5 {[%emt 0:00:00]} 50. a7 {[%emt 0:00:00]} Ra8 {[%emt 0:00:00]} 51. Rb7 {[%emt 0:00:00]} Rf8+ {[%emt 0:00:00]} 52. Ke2 {[%emt 0:00:00]} Rg2+ {[%emt 0:00:00]} 53. Ke1 {[%emt 0:00:00]} Rgg8 {[%emt 0:00:00]} 54. Rxb5 {[%emt 0:00:00]} Ke4 {[%emt 0:00:00]} 55. Rb6 {[%emt 0:00:00]} Kf3 {[%emt 0:00:00]} 0-1

[Event "DVM U14 2024"]
[Site "Heidelberg"]
[Date "2024.12.28"]
[Round "3"]
[White "Spielvogel, Oliver"]
[Black "Yang, Sophie"]
[Result "1/2-1/2"]
[ECO "D02"]
[WhiteElo "1543"]
[BlackElo "1547"]
[Annotator "NA"]
[PlyCount "116"]
[EventDate "2024.12.23"]
[EventType "team-tourn"]
[EventRounds "7"]
[EventCountry "GER"]
[SourceTitle "playchess.com"]
[Source "ChessBase"]
[SourceQuality "1"]
[TimeControl "40/5400+30:1800+30"]

1. d4 {[%emt 0:00:01]} d5 {[%emt 0:00:05]} 2. Nf3 {[%emt 0:00:05]} Nf6 {[%emt 0:00:10]} 3. Bf4 {[%emt 0:00:29]} c5 {[%emt 0:00:27]} 4. e3 {[%emt 0:00:16]} Nc6 {[%emt 0:00:13]} 5. c3 {[%emt 0:00:11]} e6 {[%emt 0:00:35]} 6. Bd3 {[%emt 0:00:25]} Be7 {[%emt 0:00:39]} 7. O-O {[%emt 0:00:13]} O-O {[%emt 0:00:14]} 8. Nbd2 {[%emt 0:00:25]} h6 {[%emt 0:01:13]} 9. h3 {[%emt 0:01:37]} cxd4 {[%emt 0:02:20]} 10. exd4 {[%emt 0:00:24]} a6 {[%emt 0:00:37]} 11. Ne5 {[%emt 0:00:34]} Bd7 {[%emt 0:02:26]} 12. Ndf3 {[%emt 0:00:52]} b5 {[%emt 0:02:05]} 13. Rc1 {[%emt 0:01:44]} b4 {[%emt 0:04:02]} 14. Nxc6 {[%emt 0:00:53]} Bxc6 {[%emt 0:00:45]} 15. cxb4 {[%emt 0:00:12]} Qb6 {[%emt 0:01:44]} 16. Ne5 {[%emt 0:01:52]} Bb5 {[%emt 0:01:00]} 17. Bxb5 {[%emt 0:01:34]} Qxb5 {[%emt 0:01:22]} 18. a3 {[%emt 0:02:30]} Rfc8 {[%emt 0:06:03]} 19. Rc3 {[%emt 0:01:27]} Ne4 {[%emt 0:02:34]} 20. Rc2 {[%emt 0:05:22]} Rab8 {[%emt 0:02:19]} 21. Qc1 {[%emt 0:02:13]} Rxc2 {[%emt 0:01:06]} 22. Qxc2 {[%emt 0:00:21]} Bf6 {[%emt 0:06:14]} 23. f3 {[%emt 0:05:22]} Ng5 {[%emt 0:01:52]} 24. Qc3 {[%emt 0:04:32]} Bxe5 {[%emt 0:07:03]} 25. Bxe5 {[%emt 0:00:19]} Rd8 {[%emt 0:02:28]} 26. Kf2 {[%emt 0:01:39]} f6 {[%emt 0:01:38]} 27. Bf4 {[%emt 0:00:58]} Nf7 {[%emt 0:10:14]} 28. Re1 {[%emt 0:02:40]} e5 {[%emt 0:02:11]} 29. dxe5 {[%emt 0:01:26]} d4 {[%emt 0:02:59]} 30. Qc5 {[%emt 0:01:41]} fxe5 {[%emt 0:07:21]} 31. Qxb5 {[%emt 0:01:41]} axb5 {[%emt 0:03:31]} 32. Bxe5 {[%emt 0:00:33]} d3 {[%emt 0:00:33]} 33. Bc3 {[%emt 0:00:15]} Nd6 {[%emt 0:00:39]} 34. b3 {[%emt 0:00:40]} Rc8 {[%emt 0:00:19]} 35. Bd2 {[%emt 0:01:00]} Nf5 {[%emt 0:00:43]} 36. Re5 {[%emt 0:01:15]} Rc2 {[%emt 0:01:42]} 37. Ke1 {[%emt 0:01:25]} Nh4 {[%emt 0:04:55]} 38. Rd5 {[%emt 0:01:18]} Nxg2+ {[%emt 0:01:15]} 39. Kd1 {[%emt 0:00:35]} Ra2 {[%emt 0:01:52]} 40. Rxd3 {[%emt 0:00:26]} Rxa3 {[%emt 0:00:39]} 41. Rd4 {[%emt 0:31:40]} Rxb3 {[%emt 0:33:43]} 42. Ke2 {[%emt 0:00:32]} g5 {[%emt 0:00:32]} 43. Rd5 {[%emt 0:01:26]} Nh4 {[%emt 0:00:32]} 44. Rxb5 {[%emt 0:01:20]} Nxf3 {[%emt 0:00:16]} 45. Rd5 {[%emt 0:02:38]} Nxd2 {[%emt 0:00:44]} 46. Rxd2 {[%emt 0:00:16]} Rxb4 {[%emt 0:00:14]} 47. Rd3 {[%emt 0:01:26]} Rh4 {[%emt 0:00:58]} 48. Kf2 {[%emt 0:00:15]} Kf7 {[%emt 0:00:08]} 49. Kg3 {[%emt 0:00:17]} Kf6 {[%emt 0:00:12]} 50. Rf3+ {[%emt 0:00:09]} Ke5 {[%emt 0:00:37]} 51. Re3+ {[%emt 0:00:32]} Kd4 {[%emt 0:00:11]} 52. Ra3 {[%emt 0:00:21]} Ke5 {[%emt 0:00:39]} 53. Re3+ {[%emt 0:00:10]} Kf5 {[%emt 0:00:13]} 54. Rf3+ {[%emt 0:00:12]} Rf4 {[%emt 0:00:36]} 55. Ra3 {[%emt 0:03:03]} Ke4 {[%emt 0:01:57]} 56. Ra4+ {[%emt 0:00:43]} Ke3 {[%emt 0:00:45]} 57. Ra3+ {[%emt 0:00:08]} Ke4 {[%emt 0:00:34]} 58. Ra4+ {[%emt 0:00:06]} Ke3 {[%emt 0:00:48]} 1/2-1/2

[Event "DVM U14 2024"]
[Site "Heidelberg"]
[Date "2024.12.28"]
[Round "3"]
[White "Draxler, Henning"]
[Black "Laube, Karl"]
[Result "1-0"]
[ECO "C05"]
[WhiteElo "1480"]
[BlackElo "1635"]
[Annotator "NA"]
[PlyCount "107"]
[EventDate "2024.12.23"]
[EventType "team-tourn"]
[EventRounds "7"]
[EventCountry "GER"]
[SourceTitle "playchess.com"]
[Source "ChessBase"]
[SourceQuality "1"]
[TimeControl "40/5400+30:1800+30"]

1. e4 {[%emt 0:00:04]} e6 {[%emt 0:00:03]} 2. d4 {[%emt 0:00:15]} d5 {[%emt 0:00:03]} 3. Nd2 {[%emt 0:00:39]} Nf6 {[%emt 0:00:07]} 4. e5 {[%emt 0:04:45]} Nfd7 {[%emt 0:00:13]} 5. Ngf3 {[%emt 0:01:20]} c5 {[%emt 0:00:07]} 6. c3 {[%emt 0:04:38]} Nc6 {[%emt 0:00:06]} 7. b3 {[%emt 0:04:56]} Qb6 {[%emt 0:00:52]} 8. Bb2 {[%emt 0:09:21]} Be7 {[%emt 0:02:40]} 9. Be2 {[%emt 0:01:52]} O-O {[%emt 0:00:14]} 10. O-O {[%emt 0:00:28]} a5 {[%emt 0:01:24]} 11. Qc2 {[%emt 0:02:34]} f6 {[%emt 0:01:42]} 12. Bd3 {[%emt 0:07:17]} h6 {[%emt 0:02:23]} 13. Bh7+ {[%emt 0:12:44]} Kh8 {[%emt 0:00:40]} 14. Nh4 {[%emt 0:02:17]} f5 {[%emt 0:02:56]} 15. Nxf5 {[%emt 0:08:16]} exf5 {[%emt 0:01:21]} 16. Bxf5 {[%emt 0:00:13]} Bg5 {[%emt 0:02:03]} 17. f4 {[%emt 0:02:32]} Be7 {[%emt 0:00:36]} 18. Qd3 {[%emt 0:02:38]} cxd4 {[%emt 0:01:53]} 19. cxd4 {[%emt 0:00:51]} Nb4 {[%emt 0:00:52]} 20. Qh3 {[%emt 0:02:51]} Qd8 {[%emt 0:02:58]} 21. Qh5 {[%emt 0:06:37]} Nb6 {[%emt 0:01:18]} 22. Bb1 {[%emt 0:01:52]} Qe8 {[%emt 0:01:46]} 23. Bg6 {[%emt 0:02:12]} Qd7 {[%emt 0:01:14]} 24. f5 {[%emt 0:03:03]} Nc2 {[%emt 0:03:34]} 25. Rac1 {[%emt 0:02:53]} Ne3 {[%emt 0:00:22]} 26. Rf3 {[%emt 0:01:44]} Rxf5 {[%emt 0:03:51]} 27. Bxf5 {[%emt 0:01:07]} Nxf5 {[%emt 0:00:35]} 28. Rcf1 {[%emt 0:02:37]} Qc6 {[%emt 0:01:34]} 29. Rc1 {[%emt 0:01:56]} Qd7 {[%emt 0:00:34]} 30. Qh3 {[%emt 0:03:52]} Bg5 {[%emt 0:01:00]} 31. Rcf1 {[%emt 0:01:34]} Qe8 {[%emt 0:01:24]} 32. Nb1 {[%emt 0:00:52]} Kh7 {[%emt 0:01:48]} 33. Rxf5 {[%emt 0:00:28]} Bxf5 {[%emt 0:01:37]} 34. Qxf5+ {[%emt 0:00:15]} Kg8 {[%emt 0:00:19]} 35. e6 {[%emt 0:00:45]} Qf8 {[%emt 0:00:31]} 36. Ba3 {[%emt 0:00:55]} Qf6 {[%emt 0:00:51]} 37. e7 {[%emt 0:00:48]} Re8 {[%emt 0:00:31]} 38. Qd3 {[%emt 0:01:03]} Qxf1+ {[%emt 0:05:24]} 39. Qxf1 {[%emt 0:00:07]} Bxe7 {[%emt 0:00:51]} 40. Bxe7 {[%emt 0:00:16]} Rxe7 {[%emt 0:00:02]} 41. Nc3 {[%emt 0:30:30]} Rc7 {[%emt 0:30:16]} 42. Qf3 {[%emt 0:00:32]} Rd7 {[%emt 0:00:12]} 43. Qg4 {[%emt 0:00:58]} Rd6 {[%emt 0:01:00]} 44. Qh5 {[%emt 0:00:32]} Rd8 {[%emt 0:00:20]} 45. Qf5 {[%emt 0:00:23]} Rd6 {[%emt 0:00:20]} 46. Qe5 {[%emt 0:00:12]} Rd8 {[%emt 0:00:23]} 47. Qe6+ {[%emt 0:00:08]} Kh7 {[%emt 0:00:25]} 48. Qxb6 {[%emt 0:00:04]} Rc8 {[%emt 0:00:13]} 49. Nxd5 {[%emt 0:00:17]} Rc1+ {[%emt 0:00:10]} 50. Kf2 {[%emt 0:00:07]} Rc2+ {[%emt 0:00:41]} 51. Ke3 {[%emt 0:00:29]} Rxa2 {[%emt 0:00:09]} 52. Qxb7 {[%emt 0:00:15]} Rxg2 {[%emt 0:00:08]} 53. Qf7 {[%emt 0:00:34]} Rxh2 {[%emt 0:00:21]} 54. Nf6+ {[%emt 0:00:13]} 1-0